Cogmind - Beta 13 @@@ ROGUE MODE // 2024.04.16 @ 20:17:50 Player: Modulottie Result: Destroyed by YI-UF0 with YI-UF0's Doublenader Performance ------------- Evolutions (0) 0 Regions Visited (2) 400 Robots Destroyed (16) 80 Value Destroyed (463) 463 Prototype IDs (0) 0 Alien Tech Used (0) 0 Bonus (0) 0 TOTAL SCORE: 943 Bonus ------- None Cogmind --------- Core Integrity 0/250 Matter 206/300 Energy 100/100 System Corruption 0% Temperature Cool (0) Movement Core (100) Ox1 Location -10/Mines Parts ------- > --- POWER (1) -------- (None) > --- PROPULSION (2) --- (None) > --- UTILITY (2) ------ Small Storage Unit Visual Processing Unit > --- WEAPON (2) ------- (None) > --- INVENTORY (8) ---- Light Ion Engine Light Nuclear Core Aluminum Leg Compact Wheel Improved Heat Sink Structural Scanner Particle Gun Peak State ------------ > --- POWER ------------ Light Nuclear Core > --- PROPULSION ------- Aluminum Leg Aluminum Leg > --- UTILITY ---------- Small Storage Unit Visual Processing Unit > --- WEAPON ----------- Particle Gun Assault Rifle > --- INVENTORY -------- Light Ion Engine Aluminum Leg Wheel Compact Wheel Improved Heat Sink Structural Scanner Medium Laser Grenade Launcher [Rating: 12] Favorites ----------- Power Ion Engine Engine Ion Engine Power Core Light Nuclear Core Propulsion Aluminum Leg Leg Aluminum Leg Utility Small Storage Unit Storage Small Storage Unit Processor Visual Processing Unit Weapon Assault Rifle Energy Gun Medium Laser Ballistic Gun Assault Rifle Launcher Grenade Launcher Build | -11 -10 -10 ------- Run | Yrd Mat Min Slots Evolved . | . . . Power . | . . . Propulsion . | . . . Utility . | . . . Weapon . | . . . Parts Attached 18 | 8 3 7 Power 4 | 2 1 1 Engine 3 | 2 1 . Core 1 | . . 1 Reactor . | . . . Propulsion 4 | 2 . 2 Treads . | . . . Leg 4 | 2 . 2 Wheel . | . . . Hover . | . . . Flight . | . . . Utility 2 | 1 1 . Device . | . . . Storage 1 | 1 . . Processor 1 | . 1 . Hackware . | . . . Protection . | . . . Artifact . | . . . Weapon 8 | 3 1 4 Energy Gun 5 | 2 . 3 Energy Cannon . | . . . Ballistic Gun 1 | 1 . . Ballistic Cannon . | . . . Launcher 2 | . 1 1 Special Weapon . | . . . Impact Weapon . | . . . Slashing Weapon . | . . . Piercing Weapon . | . . . Special Melee Weapon . | . . . Unidentified Prototypes . | . . . Parts Lost 6 | . 1 5 Power 1 | . 1 . Propulsion 2 | . . 2 Utility . | . . . Weapon 3 | . . 3 Highest Loss Streak 4 | . 1 4 To Critical Strikes . | . . . Average Slot Usage (%) 97 | . 98 95 Engine 12 | . 13 10 Leg 27 | . 28 26 Storage 14 | . 14 14 Processor 13 | . 12 14 Energy Gun 13 | . 14 11 Ballistic Gun 14 | . 14 14 Naked Turns . | . . . Heaviest Build 15 | 14 15 15 Greatest Support 20 | 20 20 20 Greatest Overweight (x) 2 | . . 2 Average Overweight (x) . | . . . Largest Inventory Capacity 8 | 8 8 8 Average Capacity 7 | 6 8 8 Most Carried 8 | 4 7 8 Average Carried 6 | 2 5 7 Final Capacity 8 | 8 8 8 Final Carried 7 | 4 7 7 Class Distribution -------------------- 100% | Mutant Dominant Class ---------------- Mutant | -10/Materials Mutant | -10/Mines Resources | -11 -10 -10 ----------- Run | Yrd Mat Min Matter Collected 514 | 191 203 120 Remotely . | . . . Salvage Created 521 | . 418 103 Parts 32 | . 25 7 Haulers Intercepted 1 | . 1 . Recyclers Shooed . | . . . Parts Field Recycled . | . . . Retrieved Matter . | . . . Parts Self-Destructed . | . . . Prevented . | . . . Kills | -11 -10 -10 ------- Run | Yrd Mat Min Combat Hostiles Destroyed 14 | . 10 4 Guns 12 | . 10 2 AOE 2 | . . 2 Classes Destroyed 6 | . 5 1 Hauler 1 | . 1 . Operator 1 | . 1 . Watcher 1 | . 1 . Swarmer 3 | . 3 . Grunt 10 | . 7 3 Assembled 1 | . . 1 Best Kill Streak 5 | . 5 2 Combat Bots Only 5 | . 5 2 Max Kills in Single Turn 1 | . 1 1 Gunslinging . | . . . Exploded 1 | . . 1 Melee . | . . . Uniques/NPCs Destroyed . | . . . Combat | -11 -10 -10 -------- Run | Yrd Mat Min Hostile Shots Fired 72 | . 46 26 Missed 20 | . 12 8 Damage Taken 947 | . 385 562 Core 256 | . 98 158 Absorbed by Shields . | . . . Core Remaining (%) 100 | 100 . . Volleys Fired 64 | . 46 18 Largest 2 | . 2 2 Hottest 85 | . 70 85 Shots Fired 120 | . 92 28 Gun 111 | . 92 19 Cannon . | . . . Launcher 9 | . . 9 Special . | . . . Kinetic 56 | . 46 10 Thermal 55 | . 46 9 Explosive 9 | . . 9 Electromagnetic . | . . . Robot Hit Streak 9 | . 9 9 Robot Miss Streak 4 | . 4 1 Penetration Max . | . . . Secondary Targets . | . . . Shots Hit Robots 65 | . 54 11 Core Hits 35 | . 25 10 Critical Kills . | . . . Critical Parts Destroyed . | . . . Critical Strikes 1 | . 1 . Burn 1 | . 1 . Melee Attacks . | . . . Impact . | . . . Slashing . | . . . Piercing . | . . . Sneak Attacks . | . . . Combat Hostiles . | . . . Follow-up Attacks . | . . . Damage Inflicted 1052 | . 763 289 Guns 819 | . 685 134 Cannons . | . . . Explosions 233 | . 78 155 Melee . | . . . Ramming . | . . . Kinetic 435 | . 360 75 Thermal 462 | . 403 59 Explosive 155 | . . 155 Electromagnetic . | . . . Impact . | . . . Slashing . | . . . Piercing . | . . . Highest Corruption . | . . . Average Corruption . | . . . Corruption Purged . | . . . Corruption Blocked . | . . . Overload Shots . | . . . Overflow Damage 3 | . . 3 Projectiles . | . . . Explosions 3 | . . 3 Melee . | . . . Knockbacks . | . . . Impact . | . . . Kinetic . | . . . Secondary . | . . . Self-Inflicted Damage 129 | . . 129 Shots 4 | . . 4 Rammed . | . . . Targets Rammed . | . . . Kicked . | . . . Crushed . | . . . Highest Temperature 132 | . 115 132 Average Temperature 37 | . 33 51 Received Heat Transfer 255 | . 180 75 Siege Activations . | . . . Robots Corrupted . | . . . Combat Hostiles . | . . . Parts Fried . | . . . Impact Corruptions . | . . . Robots Melted . | . . . Combat Hostiles . | . . . Parts Melted . | . . . Heat Transferred 1234 | . 1086 148 Parts Sabotaged . | . . . Parts Stolen . | . . . Parts Stripped . | . . . Power Chain Reactions . | . . . Alert | -11 -10 -10 ------- Run | Yrd Mat Min Peak Influence 365 | . 365 221 Initial 75 | . . 75 Average 149 | . 160 163 Maximum Alert Level 1 | . 1 1 Low Security (%) 75 | 100 68 83 Level 1 24 | . 31 16 Level 2 . | . . . Level 3 . | . . . Level 4 . | . . . Level 5 . | . . . High Security . | . . . Max Security . | . . . Squads Dispatched 2 | . 2 . Investigation . | . . . Extermination . | . . . Reinforcement 2 | . 2 . Assault . | . . . Garrison . | . . . Intercept . | . . . Searches Triggered . | . . . Construction Impeded . | . . . Haulers Reinforced . | . . . Active Scanning Responses . | . . . Cargo Convoy Interrupts . | . . . Stealth | -11 -10 -10 --------- Run | Yrd Mat Min Distress Signals 2 | . 2 . Communications Jammed . | . . . Distress Signals . | . . . Times Spotted 27 | . 22 5 Peak Tracking Total 5 | . 5 2 Tactical Retreats 1 | . . 1 Traps | -11 -10 -10 ------- Run | Yrd Mat Min Traps Triggered . | . . . Indirectly . | . . . Trap Hack Attempts . | . . . Triggered . | . . . Disarmed . | . . . Reprogrammed . | . . . Reused . | . . . Traps Extracted . | . . . Installed . | . . . Triggered . | . . . Machines | -11 -10 -10 ---------- Run | Yrd Mat Min Machines Disabled 2 | . 2 . Max in Single Turn 2 | . 2 . Machines Repaired . | . . . Machines Dismantled . | . . . Machines Sabotaged . | . . . Overloaded Fab Kills . | . . . Hacking | -11 -10 -10 --------- Run | Yrd Mat Min Machines Accessed 1 | . 1 . Terminals 1 | . 1 . Fabricators . | . . . Repair Stations . | . . . Recycling Units . | . . . Scanalyzers . | . . . Garrison Access . | . . . Total Hacks 6 | . 6 . Successful 4 | . 4 . Failed 2 | . 2 . Catastrophic 1 | . 1 . Database Lockouts . | . . . Manual 4 | . 4 . Terminals 6 | . 6 . Fabricators . | . . . Repair Stations . | . . . Recycling Units . | . . . Scanalyzers . | . . . Garrison Access . | . . . Terminal Hacks 4 | . 4 . Record 2 | . 2 . Branch Access Points 1 | . 1 . Zone Layout 1 | . 1 . Fabricator Hacks . | . . . Repair Station Hacks . | . . . Recycling Unit Hacks . | . . . Scanalyzer . | . . . Garrison Access Hacks . | . . . Unauthorized Hacks . | . . . Terminals . | . . . Fabricators . | . . . Repair Stations . | . . . Recycling Units . | . . . Scanalyzers . | . . . Garrison Access . | . . . Data Cores Recovered . | . . . Used . | . . . Hacking Detections 1 | . 1 . Full Trace Events . | . . . Feedback Events . | . . . Feedback Blocked . | . . . Robot Schematics Acquired . | . . . Robots Built . | . . . Authchips . | . . . Time . | . . . Total Robot Build Rating . | . . . Part Schematics Acquired . | . . . Parts Built . | . . . Authchips . | . . . Time . | . . . Total Part Build Rating . | . . . Parts Repaired . | . . . Time . | . . . Parts Recycled . | . . . Recycled Matter . | . . . Retrieved Matter . | . . . Retrieved Components . | . . . Parts Scanalyzed . | . . . Part Schematics Acquired . | . . . Parts Damaged . | . . . Bothacking | -11 -10 -10 ------------ Run | Yrd Mat Min Used RIF Installer . | . . . Robots Hacked . | . . . Non-combat . | . . . Combat . | . . . Robot Hacks Applied . | . . . Relay Couplers Released . | . . . Fabnet Peak Effective % . | . . . Robots Rewired . | . . . Allies Hacked . | . . . Hacks Repelled . | . . . Allies | -11 -10 -10 -------- Run | Yrd Mat Min Total Allies . | . . . Largest Group . | . . . Highest-Rated Group . | . . . Highest-Rated Ally . | . . . Total Orders . | . . . Ally Attacks . | . . . Total Damage . | . . . Kills . | . . . Allies Corrupted . | . . . Allies Melted . | . . . Intel | -11 -10 -10 ------- Run | Yrd Mat Min Robot Analysis Total . | . . . Derelict Logs Recovered . | . . . Drone Launches . | . . . Drone Recoveries . | . . . Exploration | -11 -10 -10 ------------- Run | Yrd Mat Min Turns Passed 987 | 71 594 322 Spaces Moved 584 | 51 333 200 Core 10 | 7 . 3 Treads . | . . . Legs 574 | 44 333 197 Wheels . | . . . Hover . | . . . Flight . | . . . Fastest Speed 50 | 50 120 100 Average Speed 119 | 110 120 120 Slowest Speed 150 | 120 120 150 Overloaded Moves . | . . . Propulsion Burnouts . | . . . Robots Hopped . | . . . Cave-ins Triggered . | . . . Exploration Rate (%) 28 | 4 36 45 Regions Visited 2 Branch Regions 1 Pre-discovered Areas . | . . . Known Exits Taken 1 | . 1 . Unknown Exits Taken 1 | 1 . . Scrap Searched 1 | . . 1 Spaces Dug 7 | . . 7 Terrain Destroyed 80 | . 33 47 Melee . | . . . Projectile . | . . . AOE 80 | . 33 47 Terrain Rammed . | . . . Walls Destroyed . | . . . Machines Disabled . | . . . Actions | -11 -10 -10 --------- Run | Yrd Mat Min Total 750 | 61 434 255 Wait 73 | . 50 23 Move 582 | 50 332 200 Hop . | . . . Pick Up 7 | 3 3 1 Fast Attach 8 | 6 2 . Attach 1 | . . 1 Detach 1 | . . 1 Swap 9 | 2 1 6 Drop 5 | . . 5 Fire 64 | . 46 18 Melee . | . . . Ram . | . . . Kick . | . . . Crush . | . . . Escape Stasis . | . . . Rewire . | . . . Trap . | . . . Miscellaneous . | . . . Route ------- -11/Scrapyard -10/Materials (discovered 3 exits: [*Mat] / *Min / [*Sub]) -10/Mines (discovered 1 exit: [*Mat]) History --------- Turn | Location | Event 17 | -11/Scrapyard | Discovered new exit (range 15) 72 | -11/Scrapyard | Entered Materials 302 | -10/Materials | Build established: Mutant 510 | -10/Materials | Discovered new exit (range 9) 562 | -10/Materials | Discovered new exit (range 13) 583 | -10/Materials | Identified exit to Mines 666 | -10/Materials | Entered Mines 833 | -10/Mines | Discovered new exit (range 4) 920 | -10/Mines | Excavation squad dispatched 920 | -10/Mines | A large section of the Mines collapsed 979 | -10/Mines | Core integrity fell below 50% 988 | -10/Mines | Destroyed by YI-UF0 with YI-UF0's Doublenader Last Messages --------------- escorted excavation squad. Press '.', 'keypad 5' or scroll the mouse wheel to wait a turn. 00930_ Dropped Wheel. 00930_ Wheel crushed and broken. 00944_ The unstable cave ceiling collapses. 00945_ Aluminum Leg destroyed. 00945_ Destroyed Aluminum Leg. 00949_ as-05836 destroyed. 00956_ The unstable cave ceiling collapses. 00962_ T-07 Excavator is excavating. 00982_ Grenade Launcher destroyed. 00982_ Assault Rifle destroyed. 00984_ Aluminum Leg destroyed. 00986_ YI-UF0 mumbles something. 00986_ The unstable cave ceiling collapses. 00986_ Med. Laser destroyed. 00987_ The unstable cave ceiling collapses. 00988_ YI-UF0 mumbles something. [Achievement: First Step to Greatness] Map ----- +----------------------------------------------------+ | ??# #?# ##??????# #????????# | | ??# """ #?# ##?????# #????###?? | | ??# """ ### ##?##### #????## #??# | | ??# """ ## ### ## # #???## #??# | | ??# # ## #???# ##?# | | ??# ### # ### #???# #?# | | ??#### #####?## ### #?## ##???# #?## | | ?????# #??????####?## #####??# #???# #### | | ?????# #????????????#####??????# #??## % | | ?????# #???????????????????????# #?## ##### | | ?????# #???????????????????????# ### ##### | | ###### #???????????????????##??## | | # #??????????????????# ##??### | | # #######???????????????#$ #????## #### | | # ##?????????????? #?????## #??# | | #####?????????????? ##?????## #?# | | ##????????###### ##?????## ##?# | | # ##???????## #??????# ##?# | | #######??# #??????# ##??# | | # # " #??# #???????# #???## # | | ##### " #?## #???????? #????#### | | ????########## #?# ##?###??? #???????? | | ????# ##????# ### # #?? #???????? | | ????####?????# #?# #???????? | | ?????????????##### # ##???????? | | ?????????????????# @ = #????????? | | ????????????????# # #????????? | | ????????????????# ## g #????????? | | ????????????????# ### % #???????? | | ????????????????# #?### ???????? | | ????????????????# #???## ????????? | | ????????????????#####????? # # ????????? | | ??????????????????????????# # ##?## ????????? | | ??????????????????????????? #?#????? ?????????? | | ??????????????????????????? #????????? ?????????? | | ??????????????????????????? ???????????????????? | | ???????????????????????????! ##??????????????????? | | ???????????????????????????? ???????????????????? | | ???????????????????????????? ???????????????????? | | ???????????????????????????? ???????????????????? | | ???????????????????????????? ##??????????????????? | | ?????????????????????????????#???????????????????? | | ?????????????????????????????????????????????????? | | ?????????????????????????????????????????????????? | | ?????????????????????????????????????????????????? | | ?????????????????????????????????????????????????? | | ?????????????????????????????????????????????????? | | ?????????????????????????????????????????????????? | | ?????????????????????????????????????????????????? | | ?????????????????????????????????????????????????? | +----------------------------------------------------+ Best States ------------- Heat Dissipation 25 Energy Generation 14 Energy Capacity 250 Matter Stores 300 Matter Capacity 300 Sight Range 18 Terrain Scan Density 10 Evasion (%) 55 Item Schematics ----------------- None Robot Schematics ------------------ None Fabricated ------------ Nothing Alien Tech Used ----------------- None Achievements -------------- First Step to Greatness Challenges ------------ None Game ------ Seed SapperAngularMicroactuators Manual? 0 Play Time 00:12:07 Cumulative 7.9 hours Start 2024.04.16 @ 20:02:23 End 2024.04.16 @ 20:17:50 Sessions 1 Manual Loads 0 Difficulty Rogue Special Mode None Game No. 9 Rogue 9 Adventurer 0 Explorer 0 Win Type - Total 0 Types 0/0/0/0/0/0/0/0/0 Lore% 1 Gallery% 14 Achievement% 10 Wizard Run 0 Options --------- Layout 1 ASCII 0 Keyboard 0 Movement Numpad Keybinds 0 Fullscreen 1 Font 24/Terminus Map View 50x35 Zoom Use 0% Tactical HUD 1 Map Filters NONE Filters NONE Steam 1 RUN: a5f63144-ed6e-4ab9-84ea-783229809ae2